Cogmind - Beta 11.1 @@@ ROGUE MODE // 2022.12.18 @ 23:21:56 Player: L1l7 Result: Destroyed by Y-45 Defender with Beam Rifle Performance ------------- Evolutions (1) 500 Regions Visited (3) 600 Robots Destroyed (13) 65 Value Destroyed (275) 275 Prototype IDs (0) 0 Alien Tech Used (0) 0 Bonus (0) 0 TOTAL SCORE: 1440 Bonus ------- None Cogmind --------- Core Integrity 0/400 Matter 256/300 Energy 99/100 System Corruption 0% Temperature Cool (27) Movement Core (50) Location -9/Storage Parts ------- > --- POWER (1) -------- (None) > --- PROPULSION (3) --- (None) > --- UTILITY (3) ------ (None) > --- WEAPON (2) ------- (None) > --- INVENTORY (5) ---- Light Ion Engine Signal Interpreter Seismic Detector Small Laser Peak State ------------ > --- POWER ------------ Ion Engine > --- PROPULSION ------- Aluminum Leg Aluminum Leg > --- UTILITY ---------- Small Storage Unit Structural Scanner Structural Scanner > --- WEAPON ----------- Medium Laser Light Assault Rifle > --- INVENTORY -------- Light Ion Engine Light Ion Engine Sensor Array Seismic Detector [Rating: 8] Favorites ----------- Power Ion Engine Engine Ion Engine Propulsion Aluminum Leg Leg Aluminum Leg Wheel Compact Wheel Utility Small Storage Unit Device Structural Scanner Storage Small Storage Unit Weapon Medium Laser Energy Gun Medium Laser Ballistic Gun Light Assault Rifle Build | -11 -10 -9 -9 ------- Run | Scr Mat Mat Sto Slots Evolved 2 | . . 2 . Power . | . . . . Propulsion 1 | . . 1 . Utility 1 | . . 1 . Weapon . | . . . . Parts Attached 17 | 7 3 7 . Power 2 | 1 . 1 . Engine 2 | 1 . 1 . Core . | . . . . Reactor . | . . . . Propulsion 7 | 2 1 4 . Treads . | . . . . Leg 6 | 2 1 3 . Wheel 1 | . . 1 . Hover . | . . . . Flight . | . . . . Utility 4 | 1 1 2 . Device 3 | . 1 2 . Storage 1 | 1 . . . Processor . | . . . . Hackware . | . . . . Protection . | . . . . Artifact . | . . . . Weapon 4 | 3 1 . . Energy Gun 2 | 2 . . . Energy Cannon . | . . . . Ballistic Gun 2 | 1 1 . . Ballistic Cannon . | . . . . Launcher . | . . . . Special Weapon . | . . . . Impact Weapon . | . . . . Slashing Weapon . | . . . . Piercing Weapon . | . . . . Special Melee Weapon . | . . . . Unidentified Prototypes . | . . . . Parts Lost 6 | . 1 5 . Power 1 | . . 1 . Propulsion 3 | . 1 2 . Utility 2 | . . 2 . Weapon . | . . . . Highest Loss Streak 3 | . 1 3 . To Critical Strikes . | . . . . Average Slot Usage (%) 79 | . 96 66 9 Engine 11 | . 14 8 . Leg 20 | . 28 12 . Wheel 1 | . . 2 4 Device 12 | . 11 18 . Storage 12 | . 14 11 4 Energy Gun 16 | . 25 5 . Ballistic Gun 4 | . 2 8 . Naked Turns 38 | . . . 38 Heaviest Build 15 | 13 14 15 5 Greatest Support 20 | 20 20 20 16 Greatest Overweight (x) 3 | . 1 3 . Average Overweight (x) . | . . . . Largest Inventory Capacity 8 | 8 8 8 8 Average Capacity 7 | 7 8 8 6 Most Carried 8 | 3 8 5 4 Average Carried 4 | 1 5 3 4 Final Capacity 8 | 8 8 8 5 Final Carried 6 | 3 6 4 4 Class Distribution -------------------- 100% | Mutant Dominant Class ---------------- Mutant | -10/Materials Mutant | -9/Materials Mutant | -9/Storage Resources | -11 -10 -9 -9 ----------- Run | Scr Mat Mat Sto Matter Collected 300 | 270 30 . . Remotely . | . . . . Salvage Created 348 | 84 234 30 . Parts 20 | 6 10 4 . Haulers Intercepted . | . . . . Recyclers Shooed . | . . . . Parts Field Recycled . | . . . . Retrieved Matter . | . . . . Parts Self-Destructed . | . . . . Prevented . | . . . . Kills | -11 -10 -9 -9 ------- Run | Scr Mat Mat Sto Combat Hostiles Destroyed 9 | . 8 1 . Guns 9 | . 8 1 . Classes Destroyed 3 | 1 2 . . Tunneler 4 | 4 . . . Swarmer 3 | . 3 . . Grunt 6 | . 5 1 . Best Kill Streak 4 | 2 4 1 . Combat Bots Only 4 | . 4 1 . Max Kills in Single Turn 1 | 1 1 1 . Gunslinging . | . . . . Exploded . | . . . . Melee . | . . . . Uniques/NPCs Destroyed . | . . . . Combat | -11 -10 -9 -9 -------- Run | Scr Mat Mat Sto Damage Taken 1177 | . 444 523 210 Core 501 | . 94 197 210 Absorbed by Shields . | . . . . Core Remaining (%) 81 | 100 62 . . Volleys Fired 40 | 10 28 2 . Largest 2 | 2 2 1 . Hottest 90 | 90 90 20 . Shots Fired 76 | 20 54 2 . Gun 76 | 20 54 2 . Cannon . | . . . . Launcher . | . . . . Special . | . . . . Kinetic 2 | . . 2 . Thermal 74 | 20 54 . . Explosive . | . . . . Electromagnetic . | . . . . Robot Hit Streak 13 | 7 13 3 . Robot Miss Streak 6 | 3 6 . . Penetration Max . | . . . . Secondary Targets 1 | . 1 . . Max Gunslinging Chain 1 | . 1 . . Shots Hit Robots 46 | 11 33 2 . Core Hits 21 | 4 15 2 . Critical Kills . | . . . . Critical Parts Destroyed . | . . . . Critical Strikes 2 | . 2 . . Burn 2 | . 2 . . Melee Attacks . | . . . . Impact . | . . . . Slashing . | . . . . Piercing . | . . . . Sneak Attacks . | . . . . Combat Hostiles . | . . . . Follow-up Attacks . | . . . . Damage Inflicted 564 | 127 415 22 . Guns 556 | 127 412 17 . Cannons . | . . . . Explosions . | . . . . Melee . | . . . . Ramming 8 | . 3 5 . Kinetic 17 | . . 17 . Thermal 539 | 127 412 . . Explosive . | . . . . Electromagnetic . | . . . . Impact . | . . . . Slashing . | . . . . Piercing . | . . . . Highest Corruption 1 | . 1 . . Average Corruption 1 | . 1 . . Corruption Purged . | . . . . Corruption Blocked . | . . . . Effects 2 | . 2 . . Energy Discharges 1 | . 1 . . Data Loss (minor) 1 | . 1 . . Overload Shots . | . . . . Overflow Damage . | . . . . Projectiles . | . . . . Explosions . | . . . . Melee . | . . . . Knockbacks . | . . . . Impact . | . . . . Kinetic . | . . . . Secondary . | . . . . Self-Inflicted Damage 2 | . . 2 . Shots . | . . . . Rammed 1 | . . 1 . Targets Rammed 3 | . 2 1 . Kicked 2 | . 2 . . Crushed . | . . . . Highest Temperature 432 | 120 432 6 . Average Temperature 133 | 57 161 6 . Received Heat Transfer 525 | . 174 192 159 Effects 8 | . 8 . . Shutdowns 1 | . 1 . . Energy Bleed 3 | . 3 . . Interference 2 | . 2 . . Short Circuit 1 | . 1 . . Damage (minor) 1 | . 1 . . Siege Activations . | . . . . Robots Corrupted . | . . . . Combat Hostiles . | . . . . Parts Fried . | . . . . Impact Corruptions . | . . . . Robots Melted . | . . . . Combat Hostiles . | . . . . Parts Melted 7 | 2 5 . . Heat Transferred 1574 | 323 1251 . . Parts Sabotaged . | . . . . Parts Stolen . | . . . . Parts Stripped . | . . . . Power Chain Reactions . | . . . . Missiles Intercepted . | . . . . Alert | -11 -10 -9 -9 ------- Run | Scr Mat Mat Sto Peak Influence 180 | 20 180 36 35 Initial 13 | . 13 1 5 Average 36 | 7 59 12 21 Maximum Alert Level . | . . . . Low Security (%) 100 | 100 100 100 100 Level 1 . | . . . . Level 2 . | . . . . Level 3 . | . . . . Level 4 . | . . . . Level 5 . | . . . . High Security . | . . . . Max Security . | . . . . Squads Dispatched 9 | . 3 3 3 Investigation 4 | . 2 1 1 Extermination . | . . . . Reinforcement 5 | . 1 2 2 Assault . | . . . . Garrison . | . . . . Intercept . | . . . . Searches Triggered . | . . . . Construction Impeded . | . . . . Haulers Reinforced . | . . . . Active Scanning Responses . | . . . . Cargo Convoy Interrupts . | . . . . Stealth | -11 -10 -9 -9 --------- Run | Scr Mat Mat Sto Distress Signals 3 | . 1 1 1 Communications Jammed . | . . . . Distress Signals . | . . . . Times Spotted 28 | . 12 8 8 Peak Tracking Total 7 | . 4 7 5 Tactical Retreats . | . . . . Traps | -11 -10 -9 -9 ------- Run | Scr Mat Mat Sto Traps Triggered 6 | . 3 3 . Indirectly . | . . . . Trap Hack Attempts . | . . . . Triggered . | . . . . Disarmed . | . . . . Reprogrammed . | . . . . Reused . | . . . . Traps Extracted . | . . . . Installed . | . . . . Triggered . | . . . . Machines | -11 -10 -9 -9 ---------- Run | Scr Mat Mat Sto Machines Disabled . | . . . . Max in Single Turn . | . . . . Machines Sabotaged . | . . . . Garrisons Compromised . | . . . . Overloaded Fab Kills . | . . . . Hacking | -11 -10 -9 -9 --------- Run | Scr Mat Mat Sto Machines Accessed 7 | . 3 1 3 Terminals 7 | . 3 1 3 Fabricators . | . . . . Repair Stations . | . . . . Recycling Units . | . . . . Scanalyzers . | . . . . Garrison Access . | . . . . Total Hacks 16 | . 8 2 6 Successful 3 | . 1 . 2 Failed 13 | . 7 2 4 Catastrophic 1 | . . 1 . Database Lockouts . | . . . . Manual 1 | . . . 1 Terminals 16 | . 8 2 6 Fabricators . | . . . . Repair Stations . | . . . . Recycling Units . | . . . . Scanalyzers . | . . . . Garrison Access . | . . . . Terminal Hacks 3 | . 1 . 2 Open Door 1 | . . . 1 Branch Access Points 1 | . . . 1 Unreport Threat 1 | . 1 . . Fabricator Hacks . | . . . . Repair Station Hacks . | . . . . Recycling Unit Hacks . | . . . . Scanalyzer . | . . . . Garrison Access Hacks . | . . . . Unauthorized Hacks . | . . . . Terminals . | . . . . Fabricators . | . . . . Repair Stations . | . . . . Recycling Units . | . . . . Scanalyzers . | . . . . Garrison Access . | . . . . Data Cores Recovered . | . . . . Used . | . . . . Hacking Detections 5 | . 3 1 1 Full Trace Events 3 | . 1 1 1 Feedback Events 1 | . 1 . . Corruption 1 | . 1 . . Feedback Blocked . | . . . . Robot Schematics Acquired . | . . . . Robots Built . | . . . . Authchips . | . . . . Time . | . . . . Total Robot Build Rating . | . . . . Part Schematics Acquired . | . . . . Parts Built . | . . . . Authchips . | . . . . Time . | . . . . Total Part Build Rating . | . . . . Parts Repaired . | . . . . Time . | . . . . Parts Recycled . | . . . . Recycled Matter . | . . . . Retrieved Matter . | . . . . Retrieved Components . | . . . . Parts Scanalyzed . | . . . . Part Schematics Acquired . | . . . . Parts Damaged . | . . . . Bothacking | -11 -10 -9 -9 ------------ Run | Scr Mat Mat Sto Used RIF Installer . | . . . . Robots Hacked . | . . . . Non-combat . | . . . . Combat . | . . . . Robot Hacks Applied . | . . . . Relay Couplers Released . | . . . . Fabnet Peak Effective % . | . . . . Robots Rewired . | . . . . Allies Hacked . | . . . . Hacks Repelled . | . . . . Allies | -11 -10 -9 -9 -------- Run | Scr Mat Mat Sto Total Allies . | . . . . Largest Group . | . . . . Highest-Rated Group . | . . . . Highest-Rated Ally . | . . . . Total Orders . | . . . . Ally Attacks . | . . . . Total Damage . | . . . . Kills . | . . . . Allies Corrupted . | . . . . Allies Melted . | . . . . Intel | -11 -10 -9 -9 ------- Run | Scr Mat Mat Sto Robot Analysis Total . | . . . . Derelict Logs Recovered . | . . . . Drone Launches . | . . . . Drone Recoveries . | . . . . Exploration | -11 -10 -9 -9 ------------- Run | Scr Mat Mat Sto Turns Passed 869 | 153 445 207 64 Spaces Moved 631 | 95 287 149 100 Core 100 | 9 . 16 75 Treads . | . . . . Legs 464 | 86 287 91 . Wheels 67 | . . 42 25 Hover . | . . . . Flight . | . . . . Fastest Speed 50 | 50 120 100 50 Average Speed 112 | 113 120 128 62 Slowest Speed 200 | 120 190 200 100 Overloaded Moves . | . . . . Propulsion Burnouts . | . . . . Robots Hopped . | . . . . Cave-ins Triggered . | . . . . Exploration Rate (%) 25 | 5 55 19 23 Regions Visited 3 Branch Regions 1 Pre-discovered Areas . | . . . . Known Exits Taken . | . . . . Unknown Exits Taken 3 | 1 1 1 . Scrap Searched . | . . . . Spaces Dug . | . . . . Terrain Destroyed . | . . . . Melee . | . . . . Projectile . | . . . . AOE . | . . . . Terrain Rammed . | . . . . Walls Destroyed . | . . . . Machines Disabled . | . . . . Actions | -11 -10 -9 -9 --------- Run | Scr Mat Mat Sto Total 719 | 120 333 164 102 Wait 6 | . 6 . . Move 628 | 94 286 148 100 Hop . | . . . . Pick Up 20 | 9 6 5 . Fast Attach . | . . . . Attach 15 | 6 2 7 . Detach . | . . . . Swap 2 | 1 1 . . Drop 5 | . 2 1 2 Fire 40 | 10 28 2 . Melee . | . . . . Ram 1 | . . 1 . Kick 2 | . 2 . . Crush . | . . . . Escape Stasis . | . . . . Rewire . | . . . . Trap . | . . . . Miscellaneous . | . . . . Route ------- -11/Scrapyard -10/Materials (discovered 3 exits: *Mat x2 / [*Min]) -9/Materials -9/Storage (discovered 1 exit: Rec) History --------- Turn | Location | Event 4 | -11/Scrapyard | Discovered new exit (range 16) 154 | -11/Scrapyard | Entered Materials 262 | -10/Materials | Discovered new exit (range 7) 300 | -10/Materials | Build established: Mutant 573 | -10/Materials | Discovered new exit (range 8) 581 | -10/Materials | Discovered new exit (range 16) 599 | -10/Materials | Entered another Materials area 599 | -9/Materials | Evolved 2 slots: Propulsion x1, Utility x1 800 | -9/Materials | Discovered new exit (range 7) 805 | -9/Materials | Lost 3 parts (1p2u) 806 | -9/Materials | Entered Storage 807 | -9/Storage | Identified exit to Recycling 832 | -9/Storage | Core integrity fell below 50% 856 | -9/Storage | Core integrity fell below 20% 870 | -9/Storage | Destroyed by Y-45 Defender with Beam Rifle Last Messages --------------- O-16 Technician: "IFF HANDSHAKE FAILED. SECURING TERMINAL." Dropped Com. Wheel. Dropped Sml. Storage Unit. K-01 Serf cleans the Terminal. Connecting with Terminal... ALERT: Suspicious activity at Terminal S016. Dispatching Investigation squad. K-01 Serf collects debris. O-16 Technician: "IFF HANDSHAKE FAILED. SECURING TERMINAL." O-16 Technician uses terminal to summon reinforcements. ALERT: Hostiles spotted, dispatching reinforcements to Terminal S006. O-16 Technician locks terminal. Connecting with Door Terminal... >>Open(Door) Sealed Heavy Doors opened. O-16 Technician suffers critical hit (Burn). Critical hit (Burn: +37). U-05 Engineer builds a Door. K-01 Serf collects debris. Critical hit (Burn: +37). Map ----- +----------------------------------------------------+ | | | | | | | | | | | | | | | | | | | | | ???????????????????????????????????????????????? | | ?????????????????????????#########?????????????? | | ?????????????????????????# """ #????????????? | | ?????????????????????????# "T" ????????????? | | ?????????????????????????+ #####????????? | | ?????????????????????????# """# ###??????? | | ?????????????????????????# """# ""#??????? | | ?????????????????????????+ """# T"#??????? | | ????????????????######???# o """# ""#??????? | | ????????????????? ??# """# ###??????? | | ?????????????????"""" ??#k # #????????? | | ?????????????????"""" ##Y##+##### #????????? | | ???????????????? """" # #????????? | | ???????????????? """" ! + #????????? | | ???????????????# # #????????? | | ???????????????# #@ ###########????????? | | ???????????????# ?# = #??????????????????? | | ???????????????# ?# ! #??????????????????? | | ??????????????########??# w #??????????????????? | | ??????????????# ?# #??????????????????? | | ??????????????# ?# o#??????????????????? | | ??????????????# # ###????????????????? | | ??????????????# #u ""#????????????????? | | ??????????????# +^ ""#????????????????? | | ??????????????# """ """ # T"#????????????????? | | ?????????????????"" """ # ""#????????????????? | | ??????????????????" """?# ""#????????????????? | | ??????????????????#####?# ###????????????????? | | ????????????????????????# #??????????????????? | | ????????????????????????#g #??????????????????? | | ????????????????????????# g #??????????????????? | | ????????????????????????# #??????????????????? | | ????????????????????????# #??????????????????? | | ????????????????????????# #??????????????????? | | ????????????????????????# #??????????????????? | | ????????????????????????# #?????###??????????? | | ????????????????????????# #??"!!!!#??????????? | | ????????????????????????# # #??????????? | | ????????????????????????# + "???????????????? | | ????????????????????????# ####???????????????? | +----------------------------------------------------+ Best States ------------- Heat Dissipation 28 Energy Generation 10 Energy Capacity 250 Matter Stores 300 Matter Capacity 300 Sight Range 16 Robot Scan Range 14 Terrain Scan Density 10 Evasion (%) 55 Item Schematics ----------------- None Robot Schematics ------------------ None Fabricated ------------ Nothing Alien Tech Used ----------------- None Achievements -------------- None Challenges ------------ None Game ------ Seed XenonMinesnifferFalx Manual? 0 Play Time 00:10:34 Cumulative 50.2 hours Start 2022.12.18 @ 23:12:19 End 2022.12.18 @ 23:21:56 Sessions 1 Manual Loads 0 Difficulty Rogue Special Mode None Game No. 77 Rogue 77 Adventurer 0 Explorer 0 Win Type - Total 1 Types 1/0/0/0/0/0/0/0/0 Lore% 34 Gallery% 43 Achievement% 36 Wizard Run 0 Options --------- ASCII 0 Keyboard 0 Movement Arrows Keybinds 0 Fullscreen 2 Font 16/SmallcapsGlow Map View 76x50 Tactical HUD 0 Map Filters NONE Filters NONE Steam 1 RUN: 3940e05f-5c19-49ae-9ea4-a4029643bb0e